Cogmind - Beta 17 @@@ ROGUE MODE // 2026.07.27 @ 00:34:31 Player: rz Result: Destroyed by P-80 Master with Gamma Rifle Performance ------------- Evolutions (9) 4500 Regions Visited (13) 2600 Robots Destroyed (114) 570 Value Destroyed (5275) 5275 Prototype IDs (28) 560 Alien Tech Used (0) 0 Bonus (1078) 1078 TOTAL SCORE: 14583 Bonus ------- High Alert Combat Kills 120 Follower Combat Kills 158 Entered DSFs 500 Aligned with FarCom 300 Cogmind --------- Core Integrity 0/1600 Matter 98/300 Energy 172/190 System Corruption 0% Temperature Cool (2) Movement Hovering (120) Ox1 Location -1/Access Parts ------- > --- POWER (3) -------- Light Quantum Reactor > --- PROPULSION (8) --- Improved Linear Gravjet Impulse Thruster Array Experimental Q-thruster > --- UTILITY (8) ------ Advanced Terrain Scan Processor Advanced Corruption Screen > --- WEAPON (6) ------- (None) > --- INVENTORY (5) ---- Quantum Reactor Peak State ------------ > --- POWER ------------ Fission Core Light Particle Reactor > --- PROPULSION ------- Biometal Medium Treads Biometal Medium Treads Biometal Medium Treads Biometal Medium Treads Advanced Heavy Treads > --- UTILITY ---------- Advanced Heat Sink Advanced Heat Sink Advanced Heat Sink Advanced Heat Sink Huge Storage Unit Precision Energy Filter Graphene Brace > --- WEAPON ----------- Gamma Rifle Gamma Rifle Gamma Rifle Long-range Proton Cannon Compact HERF Cannon Nova Cannon > --- INVENTORY -------- Light Antimatter Reactor Heavy Siege Treads Advanced Heat Sink Matter Compressor Advanced Signal Interpreter Long-range Terrain Scanner Advanced Terrain Scan Processor Advanced Target Analyzer Precision Energy Filter Advanced ECM Suite Improved Phase Shifter Graphene Brace Advanced Point Defense System System Shield Advanced Component Analysis Suite High-powered Tractor Beam High-powered Tractor Beam Advanced Recalibrator Advanced Recalibrator Gamma Rifle Gamma Rifle Gamma Rifle Gamma Rifle Gamma Rifle [Rating: 158] Favorites ----------- Power Light Antimatter Reactor Engine Ion Engine Power Core Fission Core Reactor Light Antimatter Reactor Propulsion Biometal Medium Treads Treads Biometal Medium Treads Wheel Wheel Hover Unit Improved Linear Gravjet Flight Unit Electron Diverter Utility Advanced Terrain Scan Processor Device Advanced Heat Sink Storage Large Storage Unit Processor Advanced Terrain Scan Processor Protection Hardened Medium Armor Plating Weapon Light Assault Rifle Energy Gun Gamma Rifle Energy Cannon Nova Cannon Ballistic Gun Light Assault Rifle Ballistic Cannon Assault Cannon Launcher Grenade Launcher Special Weapon Mining Laser Impact Weapon Powered Hammer Build | -11 -10 -10 -10 -9 -8 -7 -6 -5 -4 -4 -3 -2 -1 ------- Run | Yrd Mat Min Exi Min Mat Fac Fac Fac Fac DSF Res Res Acc Slots Evolved 18 | . . . . . 4 2 2 2 2 . 2 2 2 Power 2 | . . . . . . . . 1 . . . . 1 Propulsion 6 | . . . . . 1 1 . . 1 . 1 1 1 Utility 6 | . . . . . 2 . 2 . . . 1 1 . Weapon 4 | . . . . . 1 1 . 1 1 . . . . Parts Attached 135 | 6 6 10 . 3 12 4 17 4 1 7 44 1 20 Power 21 | . 2 . . 1 . 1 1 2 . 2 7 . 5 Engine 6 | . 2 . . 1 . 1 1 1 . . . . . Core 2 | . . . . . . . . 1 . . 1 . . Reactor 13 | . . . . . . . . . . 2 6 . 5 Propulsion 35 | 2 1 4 . 1 3 1 4 1 . 3 9 . 6 Treads 26 | 2 1 3 . 1 3 1 4 1 . 3 7 . . Leg . | . . . . . . . . . . . . . . Wheel 1 | . . 1 . . . . . . . . . . . Hover 1 | . . . . . . . . . . . . . 1 Flight 7 | . . . . . . . . . . . 2 . 5 Utility 46 | 2 1 2 . 1 4 1 9 . . 1 16 1 8 Device 28 | 1 . 1 . 1 1 . 5 . . 1 15 1 2 Storage 4 | 1 1 . . . . . 1 . . . 1 . . Processor 9 | . . 1 . . 1 1 . . . . . . 6 Hackware . | . . . . . . . . . . . . . . Protection 5 | . . . . . 2 . 3 . . . . . . Artifact . | . . . . . . . . . . . . . . Weapon 33 | 2 2 4 . . 5 1 3 1 1 1 12 . 1 Energy Gun 7 | 1 . . . . . . . . . . 6 . . Energy Cannon 4 | . . . . . . . . . . . 3 . 1 Ballistic Gun 11 | 1 1 3 . . 4 . 1 . 1 . . . . Ballistic Cannon 8 | . . . . . 1 1 1 1 . 1 3 . . Launcher 1 | . . 1 . . . . . . . . . . . Special Weapon 1 | . 1 . . . . . . . . . . . . Impact Weapon 1 | . . . . . . . 1 . . . . . . Slashing Weapon . | . . . . . . . . . . . . . . Piercing Weapon . | . . . . . . . . . . . . . . Special Melee Weapon . | . . . . . . . . . . . . . . Unidentified Prototypes 3 | . . . . . . 1 . . . . 1 . 1 Corrupted Parts 1 | . . . . . . . . . . . 1 . . System Corruption 7 | . . . . . . . . . . . 7 . . Parts Lost 59 | . . 6 . 1 4 . 1 . . . 33 . 14 Power 11 | . . . . 1 . . . . . . 6 . 4 Propulsion 11 | . . 2 . . 1 . . . . . 4 . 4 Utility 14 | . . 1 . . . . . . . . 7 . 6 Weapon 23 | . . 3 . . 3 . 1 . . . 16 . . Highest Loss Streak 11 | . . 4 . 1 1 . 1 . . . 11 . 5 To Critical Strikes . | . . . . . . . . . . . . . . Average Backups 15 | 3 7 9 12 13 13 12 17 17 17 18 22 3 3 Power 1 | 1 . . . . . . 1 1 1 1 1 . . Propulsion 2 | 1 3 4 6 6 4 2 2 3 2 2 1 2 1 Utility 8 | . . 2 4 3 5 7 9 10 11 12 15 . . Weapon 2 | . 1 2 2 3 2 2 4 2 3 3 3 . . Tool/Special . | . . . . . . . . . . . . . . Unused Backups 38 | . 2 . . . 4 . 4 . . 6 19 1 2 Power 1 | . . . . . . . . . . . . . 1 Propulsion 9 | . 1 . . . 4 . . . . 2 . 1 1 Utility 19 | . . . . . . . 2 . . 4 13 . . Weapon 9 | . 1 . . . . . 2 . . . 6 . . Tool/Special . | . . . . . . . . . . . . . . Average Slot Usage (%) 89 | . 100 94 100 97 96 99 99 96 94 93 89 7 25 Engine 6 | . 14 14 14 11 9 7 6 7 10 8 . . . Reactor 1 | . . . . . . . . . . 1 5 . 1 Treads 24 | . 28 27 28 28 26 30 26 23 26 26 25 . . Device 13 | . 14 4 . 7 9 7 16 17 15 15 20 3 2 Storage 7 | . 14 14 14 14 9 7 6 5 5 5 3 . . Processor 5 | . . 4 14 6 8 7 6 5 5 5 2 . 15 Protection 3 | . . . . . 7 7 9 5 5 5 2 . . Energy Gun 1 | . 10 . . . . . . . . . 4 . . Ballistic Gun 14 | . 17 25 28 28 20 22 16 11 10 15 7 . . Ballistic Cannon 4 | . . . . . 4 7 8 11 10 9 6 . . Peak Build Rating 158 | 8 9 10 9 11 25 31 63 74 86 117 158 16 107 Average Rating 60 | 4 8 7 8 9 19 29 50 69 75 99 134 15 54 On Entrance 33 | . 8 9 8 9 11 25 30 63 74 86 117 12 16 Avg Prop Armor Cover (%) 4 | . . 13 . . . . . . . . 3 . . Naked Turns 35 | . . . . . . . . . . . 35 . . Heaviest Build 169 | 8 28 30 27 33 48 49 97 116 116 131 169 3 19 Greatest Support 210 | 40 40 40 40 40 60 80 102 109 129 162 210 8 47 Greatest Overweight (x) 2 | . . 2 . . 1 . 1 1 . . 1 . 1 Average Overweight (x) . | . . . . . . . . . . . . . . Largest Inventory Capacity 25 | 8 15 15 15 15 15 15 20 20 20 20 25 5 5 Average Capacity 17 | 7 9 15 15 15 15 15 19 20 20 20 24 5 5 Most Carried 25 | 5 8 12 14 15 15 15 20 20 19 20 25 5 5 Average Carried 15 | 3 7 9 12 14 14 13 19 19 18 19 22 4 3 Final Capacity 20 | 8 15 15 15 15 15 15 20 20 20 20 5 5 5 Final Carried 20 | 5 8 12 14 15 15 15 20 20 18 20 5 4 1 Class Distribution -------------------- 29% | Mutant 23% | Scavenger-Skirmisher 21% | Scavenger-Executioner 8% | Assassin 7% | Skirmisher 5% | Executioner Dominant Class ---------------- Mutant | -10/Materials Mutant | -10/Mines Mutant | -10/Exiles Mutant | -9/Mines Scavenger-Skirmisher | -8/Materials Scavenger-Skirmisher | -7/Factory Scavenger-Skirmisher | -6/Factory Assassin | -5/Factory Assassin | -4/Factory Executioner | -4/DSF Scavenger-Executioner | -3/Research Mutant | -2/Research Mutant | -1/Access Resources | -11 -10 -10 -10 -9 -8 -7 -6 -5 -4 -4 -3 -2 -1 ----------- Run | Yrd Mat Min Exi Min Mat Fac Fac Fac Fac DSF Res Res Acc Matter Collected 4497 | 172 246 356 . 33 441 22 518 173 . 671 1865 . . Remotely 572 | . . . . . . . . . . . 572 . . Salvage Created 5238 | 112 261 260 . 37 780 17 435 158 . 832 2346 . . Parts 292 | 2 12 13 . 2 53 4 34 6 . 30 136 . . Haulers Intercepted 4 | . 1 . . . 2 . . 1 . . . . . Recyclers Shooed 7 | 1 . 2 . . . . . 1 . . 3 . . Parts Field Recycled . | . . . . . . . . . . . . . . Retrieved Matter . | . . . . . . . . . . . . . . Parts Self-Destructed . | . . . . . . . . . . . . . . Prevented . | . . . . . . . . . . . . . . Parts Restored 2 | . . . . . . . . . . . 2 . . Broken 2 | . . . . . . . . . . . 2 . . Kills | -11 -10 -10 -10 -9 -8 -7 -6 -5 -4 -4 -3 -2 -1 ------- Run | Yrd Mat Min Exi Min Mat Fac Fac Fac Fac DSF Res Res Acc Combat Hostiles Destroyed 99 | . 6 12 . 1 18 . 10 1 . 10 41 . . Guns 58 | . 6 9 . 1 12 . 4 1 . 8 17 . . Cannons 28 | . . . . . 6 . 6 . . 2 14 . . AOE 8 | . . 3 . . . . . . . . 5 . . Classes Destroyed 17 | 2 3 2 . . 4 1 2 . . 2 1 . . Worker 3 | . . . . . . 1 . 1 . . 1 . . Builder 9 | . . . . . 2 . 3 . . . 4 . . Tunneler 1 | 1 . . . . . . . . . . . . . Hauler 4 | . 1 . . . 2 . . 1 . . . . . Recycler 3 | 1 . 1 . . . . . . . . 1 . . Watcher 1 | . . . . . . . . . . . 1 . . Swarmer 23 | . 2 3 . . 6 . 1 . . . 11 . . Grunt 28 | . 4 2 . 1 9 . . 1 . 7 4 . . Brawler 2 | . . . . . 1 . 1 . . . . . . Duelist 1 | . . . . . . . 1 . . . . . . Sentry 7 | . . . . . 1 . 2 . . . 4 . . Demolisher 1 | . . 1 . . . . . . . . . . . Specialist 2 | . . . . . . . . . . 2 . . . Hunter 5 | . . . . . 1 . . . . . 4 . . Programmer 23 | . . . . . . . 5 . . . 18 . . Heavy 1 | . . . . . . . . . . 1 . . . Assembled 6 | . . 6 . . . . . . . . . . . Best Kill Streak 8 | 2 2 4 . 1 4 1 4 1 . 7 8 . . Combat Bots Only 7 | . 2 3 . 1 4 . 3 1 . 7 7 . . Max Kills in Single Turn 5 | 1 1 2 . 1 2 1 3 1 . 1 5 . . Gunslinging . | . . . . . . . . . . . . . . Exploded 5 | . . 2 . . . . . . . . 5 . . Melee . | . . . . . . . . . . . . . . Uniques/NPCs Destroyed . | . . . . . . . . . . . . . . Combat | -11 -10 -10 -10 -9 -8 -7 -6 -5 -4 -4 -3 -2 -1 -------- Run | Yrd Mat Min Exi Min Mat Fac Fac Fac Fac DSF Res Res Acc Hostile Shots Fired 1162 | . 27 82 . 2 88 . 79 . . 56 560 17 251 Missed 462 | . 7 19 . 1 23 . 36 . . 22 202 12 140 Hits 700 | . 20 63 . 1 65 . 43 . . 34 358 5 111 Melee 4 | . . 1 . . 2 . . . . . 1 . . Projectile 696 | . 20 62 . 1 63 . 43 . . 34 357 5 111 AOE 18 | . . 17 . . . . . . . . . . 1 Critical Strikes 40 | . . . . . 1 . . . . 2 25 1 11 Actively Blocked 24 | . . . . . . . . . . . 24 . . Part Disruptions 6 | . . . . . . . . . . . 6 . . Damage Taken 13734 | . 194 1227 . 17 868 . 570 . . 470 7557 122 2709 Core 3298 | . 6 204 . . 105 . 25 . . 33 1192 122 1611 Absorbed by Shields 162 | . . . . . . . . . . 114 48 . . Ignored by Resistances 414 | . . . . . . . 38 . . 86 290 . . Core Remaining (%) 76 | 100 . . . 16 80 100 97 100 . 97 8 91 . Volleys Fired 314 | 8 23 47 . 4 69 1 37 2 . 13 108 . 2 Largest 5 | 2 2 2 . 2 3 4 4 4 . 4 5 . 1 Hottest 438 | 60 100 50 . 40 82 102 119 127 . 141 438 . 120 Shots Fired 990 | 16 34 89 . 8 201 4 105 8 . 89 434 . 2 Gun 688 | 16 33 84 . 8 167 3 61 4 . 65 247 . . Cannon 296 | . . . . . 34 1 44 4 . 24 187 . 2 Launcher 5 | . . 5 . . . . . . . . . . . Special 1 | . 1 . . . . . . . . . . . . Kinetic 813 | 8 22 84 . 8 201 4 105 8 . 89 284 . . Thermal 34 | 8 12 . . . . . . . . . 12 . 2 Explosive 5 | . . 5 . . . . . . . . . . . Electromagnetic 138 | . . . . . . . . . . . 138 . . Robot Hit Streak 21 | 12 9 21 . 11 15 2 12 7 . 12 14 . . Robot Miss Streak 6 | 1 2 5 . . 4 2 3 1 . 2 6 . . Penetration Max 1 | . . . . . . . . . . 1 1 . . Secondary Targets 3 | . 1 1 . . 1 . . . . . . . . Max Gunslinging Chain 1 | . 1 1 . . 1 . . . . . . . . Autonomous 117 | . . . . . . . . . . 39 78 . . Shots Hit Robots 642 | 14 22 57 . 8 130 2 63 9 . 68 269 . . Core Hits 275 | 3 14 29 . 3 52 1 27 6 . 31 109 . . Critical Kills 5 | . . 1 . . 2 . . . . . 2 . . Critical Parts Destroyed 7 | . . . . . . . . 1 . 2 4 . . Critical Strikes 35 | . . 1 . . 3 . 2 2 . 4 23 . . Destroy 11 | . . 1 . . 2 . . . . 2 6 . . Blast 22 | . . . . . 1 . 2 1 . 2 16 . . Corrupt 1 | . . . . . . . . . . . 1 . . Smash 1 | . . . . . . . . 1 . . . . . Melee Attacks 16 | . . . . . . . 5 11 . . . . . Impact 16 | . . . . . . . 5 11 . . . . . Slashing . | . . . . . . . . . . . . . . Piercing . | . . . . . . . . . . . . . . Sneak Attacks 4 | . . . . . . . . 4 . . . . . Combat Hostiles . | . . . . . . . . . . . . . . Follow-up Attacks . | . . . . . . . . . . . . . . Damage Inflicted 14507 | 137 194 565 . 67 1457 43 1347 469 . 1998 8230 . . Guns 8578 | 137 194 467 . 67 900 19 536 41 . 1579 4638 . . Cannons 4675 | . . . . . 488 24 546 58 . 419 3140 . . Explosions 832 | . . 98 . . 69 . 265 . . . 400 . . Melee 370 | . . . . . . . . 370 . . . . . Ramming 52 | . . . . . . . . . . . 52 . . Kinetic 11453 | 58 99 467 . 67 1388 43 1082 99 . 1998 6152 . . Thermal 1165 | 79 95 . . . . . 265 . . . 726 . . Explosive 167 | . . 98 . . 69 . . . . . . . . Electromagnetic 1300 | . . . . . . . . . . . 1300 . . Impact 370 | . . . . . . . . 370 . . . . . Slashing . | . . . . . . . . . . . . . . Piercing . | . . . . . . . . . . . . . . Highest Corruption 34 | . . . . . 4 . . . . . 34 . . Average Corruption 8 | . . . . . 4 . . . . . 8 . . Corruption Purged 7 | . . . . . . . . . . . 7 . . Corruption Blocked 11 | . . . . . . . . . . . . . 11 Effects 80 | . . . . . 2 . . . . . 78 . . Message Errors 20 | . . . . . . . . . . . 20 . . Matter Fused 16 | . . . . . . . . . . . 16 . . Heat Flow Errors 11 | . . . . . . . . . . . 11 . . Energy Discharges 5 | . . . . . . . . . . . 5 . . Parts Rejected 3 | . . . . . 1 . . . . . 2 . . Parts Fused 1 | . . . . . 1 . . . . . . . . Data Loss (minor) 4 | . . . . . . . . . . . 4 . . Data Loss (major) 2 | . . . . . . . . . . . 2 . . Misfires 4 | . . . . . . . . . . . 4 . . Alerts 1 | . . . . . . . . . . . 1 . . Misdirections 3 | . . . . . . . . . . . 3 . . Weapon Failures 10 | . . . . . . . . . . . 10 . . Overload Shots . | . . . . . . . . . . . . . . Overflow Damage 389 | . . . . . 15 . 149 66 . . 159 . . Projectiles 174 | . . . . . 15 . 34 . . . 125 . . Explosions 149 | . . . . . . . 115 . . . 34 . . Melee 66 | . . . . . . . . 66 . . . . . Knockbacks 40 | . . . . . 2 . 7 1 . 3 27 . . Impact 1 | . . . . . . . . 1 . . . . . Kinetic 38 | . . . . . 2 . 7 . . 3 26 . . Secondary 1 | . . . . . . . . . . . 1 . . Self-Inflicted Damage 209 | . . 28 . . 37 . 143 . . . 1 . . Shots 5 | . . 2 . . 1 . 2 . . . . . . Rammed 4 | . . . . . . . . . . . 4 . . Targets Rammed 5 | . . . . . . . . . . . 5 . . Kicked . | . . . . . . . . . . . . . . Crushed 1 | . . . . . . . . . . . 1 . . Highest Temperature 647 | 20 64 30 . . 270 56 186 . . 19 647 . 20 Average Temperature 88 | 10 25 12 . . 89 32 55 . . 8 110 . 15 Received Heat Transfer 1498 | . 60 151 . 9 360 . 78 . . 111 549 45 135 Effects 12 | . . . . . 2 . . . . . 10 . . Shutdowns 3 | . . . . . . . . . . . 3 . . Energy Bleed 2 | . . . . . . . . . . . 2 . . Interference 4 | . . . . . 2 . . . . . 2 . . Matter Decay 2 | . . . . . . . . . . . 2 . . Damage (minor) 1 | . . . . . . . . . . . 1 . . Siege Activations . | . . . . . . . . . . . . . . Martial Activations . | . . . . . . . . . . . . . . Shielding Activations . | . . . . . . . . . . . . . . Robots Disrupted 1 | . . . . . . . . . . . 1 . . Combat Hostiles 1 | . . . . . . . . . . . 1 . . Robots Corrupted 6 | . . . . . . . . 1 . . 5 . . Combat Hostiles 5 | . . . . . . . . . . . 5 . . Parts Fried 19 | . . . . . . . . 1 . . 18 . . Impact Corruptions 1 | . . . . . . . . 1 . . . . . Robots Melted . | . . . . . . . . . . . . . . Combat Hostiles . | . . . . . . . . . . . . . . Parts Melted 1 | . . . . . . . 1 . . . . . . Heat Transferred 1109 | 175 225 . . . . . 200 . . . 509 . . Parts Sabotaged . | . . . . . . . . . . . . . . Parts Stolen . | . . . . . . . . . . . . . . Parts Stripped . | . . . . . . . . . . . . . . Power Chain Reactions 1 | . . . . . . . . . . . 1 . . Alert | -11 -10 -10 -10 -9 -8 -7 -6 -5 -4 -4 -3 -2 -1 ------- Run | Yrd Mat Min Exi Min Mat Fac Fac Fac Fac DSF Res Res Acc Maximum Alert Level 2 | . . . . . 1 . . . . 1 2 1 2 Low Security (%) 78 | 100 100 100 . 100 79 100 100 100 100 72 52 . 50 Level 1 16 | . . . . . 20 . . . . 27 28 100 46 Level 2 5 | . . . . . . . . . . . 19 . 3 Level 3 . | . . . . . . . . . . . . . . Level 4 . | . . . . . . . . . . . . . . Level 5 . | . . . . . . . . . . . . . . High Security . | . . . . . . . . . . . . . . Max Security . | . . . . . . . . . . . . . . Sterilizations 1 | . . . . . . . . . . 1 . . . Peak Influence 609 | 10 67 65 . 152 324 141 113 39 . 279 609 357 494 Initial 342 | . . 3 . . 43 141 . 39 . . 156 342 208 Average 113 | . 20 7 . 46 123 46 26 4 . 109 237 292 202 Influence Increases 4308 | 10 191 175 . 243 648 14 368 36 . 279 1429 135 780 Destroy 0b10 Robot/C 2020 | . 120 120 . 180 360 . 200 20 . 200 820 . . Destroy 0b10 Robot/NC 105 | 10 5 5 . . 20 5 15 10 . . 35 . . Destroy Leader 438 | . 32 20 . 30 64 . 70 . . 30 192 . . Allied During Kill 33 | . . . . 33 . . . . . . . . . Successful Hack 69 | . 19 . . . 20 9 9 . . . 12 . . Disable Machine 135 | . 15 . . . 30 . 45 . . 15 30 . . Destroy Structure 263 | . . 30 . . 34 . 29 6 . 4 160 . . Partial Spotted 30 | . . . . . . . . . . . . . 30 Lose Combat Pursuer 1215 | . . . . . 120 . . . . 30 180 135 750 Influence Decreases 3814 | 10 183 183 . 131 448 326 286 118 . . 1100 396 633 Entered New Map 816 | . . 5 . . 69 171 . 43 . . 123 266 139 Time Decay 2324 | 10 183 153 . 131 339 155 247 75 . . 647 130 254 Search Patrol Dispatched 100 | . . . . . . . . . . . . . 100 Lost Part 535 | . . 25 . . 40 . . . . . 330 . 140 Purge Threat 39 | . . . . . . . 39 . . . . . . Squads Dispatched 44 | . 2 . . . 2 1 6 2 . 2 20 2 7 Investigation 7 | . 1 . . . . . . 1 . . 1 1 3 Extermination 18 | . . . . . . 1 4 . . . 8 1 4 Reinforcement 14 | . 1 . . . 2 . 2 1 . 2 6 . . Assault . | . . . . . . . . . . . . . . Garrison 5 | . . . . . . . . . . . 5 . . Intercept . | . . . . . . . . . . . . . . Searches Triggered 1 | . . . . . . . . . . . . . 1 Construction Impeded 4 | . . . . . . . 1 . . . 3 . . Haulers Reinforced 1 | . . . . . . . . 1 . . . . . Active Scanning Responses . | . . . . . . . . . . . . . . Cargo Convoy Interrupts . | . . . . . . . . . . . . . . Stealth | -11 -10 -10 -10 -9 -8 -7 -6 -5 -4 -4 -3 -2 -1 --------- Run | Yrd Mat Min Exi Min Mat Fac Fac Fac Fac DSF Res Res Acc Distress Signals 17 | . . 2 . . 6 . . . . . 6 . 3 Communications Jammed . | . . . . . . . . . . . . . . Distress Signals . | . . . . . . . . . . . . . . Times Spotted 248 | . 9 25 . 6 31 . 14 3 . 12 79 7 62 Peak Tracking Total 26 | . 3 6 . 4 6 . 3 1 . 8 14 11 26 Tactical Retreats 24 | . . 2 . . 4 . . . . 2 5 1 10 Traps | -11 -10 -10 -10 -9 -8 -7 -6 -5 -4 -4 -3 -2 -1 ------- Run | Yrd Mat Min Exi Min Mat Fac Fac Fac Fac DSF Res Res Acc Traps Triggered 11 | . 1 . . . . . 2 . . 1 5 . 2 Indirectly . | . . . . . . . . . . . . . . Trap Hack Attempts . | . . . . . . . . . . . . . . Triggered . | . . . . . . . . . . . . . . Disarmed . | . . . . . . . . . . . . . . Reprogrammed . | . . . . . . . . . . . . . . Reused . | . . . . . . . . . . . . . . Traps Extracted . | . . . . . . . . . . . . . . Installed . | . . . . . . . . . . . . . . Triggered . | . . . . . . . . . . . . . . Machines | -11 -10 -10 -10 -9 -8 -7 -6 -5 -4 -4 -3 -2 -1 ---------- Run | Yrd Mat Min Exi Min Mat Fac Fac Fac Fac DSF Res Res Acc Machines Disabled 9 | . 1 . . . 2 . 3 . . 1 2 . . Max in Single Turn 3 | . 1 . . . 1 . 3 . . 1 1 . . Machines Repaired . | . . . . . . . . . . . . . . Machines Dismantled . | . . . . . . . . . . . . . . Machines Sabotaged . | . . . . . . . . . . . . . . Overloaded Fab Kills . | . . . . . . . . . . . . . . Hacking | -11 -10 -10 -10 -9 -8 -7 -6 -5 -4 -4 -3 -2 -1 --------- Run | Yrd Mat Min Exi Min Mat Fac Fac Fac Fac DSF Res Res Acc Machines Accessed 41 | . 5 . 1 . 4 4 7 3 1 . 8 2 6 Terminals 32 | . 5 . . . 4 3 5 2 1 . 4 2 6 Fabricators . | . . . . . . . . . . . . . . Repair Stations . | . . . . . . . . . . . . . . Recycling Units 3 | . . . . . . 1 . 1 . . 1 . . Scanalyzers 5 | . . . . . . . 2 . . . 3 . . Garrison Access . | . . . . . . . . . . . . . . Total Hacks 66 | . 8 . 1 . 6 5 12 9 1 . 10 3 11 Successful 18 | . 3 . 1 . 3 2 5 2 1 . 1 . . Failed 47 | . 5 . . . 2 3 7 7 . . 9 3 11 Catastrophic 18 | . 1 . . . 2 1 3 2 . . 3 2 4 Database Lockouts 1 | . . . . . 1 . . . . . . . . Manual 31 | . 7 . 1 . 5 1 5 4 . . . . 8 Terminals 49 | . 8 . . . 6 4 6 4 1 . 6 3 11 Fabricators . | . . . . . . . . . . . . . . Repair Stations . | . . . . . . . . . . . . . . Recycling Units 7 | . . . . . . 1 . 5 . . 1 . . Scanalyzers 9 | . . . . . . . 6 . . . 3 . . Garrison Access . | . . . . . . . . . . . . . . Terminal Hacks 11 | . 3 . 1 . 3 1 2 . 1 . . . . Robot Analysis 2 | . 1 . . . 1 . . . . . . . . Open DSF 1 | . . . . . . . . . 1 . . . . Level Access Points 2 | . . . . . . 1 1 . . . . . . Branch Access Points 1 | . 1 . . . . . . . . . . . . Unreport Threat 1 | . . . . . . . 1 . . . . . . Zone Layout 3 | . 1 . . . 2 . . . . . . . . Proto ID Catalog 1 | . . . 1 . . . . . . . . . . Fabricator Hacks . | . . . . . . . . . . . . . . Repair Station Hacks . | . . . . . . . . . . . . . . Recycling Unit Hacks 3 | . . . . . . 1 . 2 . . . . . Retrieve Matter 1 | . . . . . . . . 1 . . . . . Retrieve Components 2 | . . . . . . 1 . 1 . . . . . Scanalyzer 4 | . . . . . . . 3 . . . 1 . . Retrieve Study 4 | . . . . . . . 3 . . . 1 . . Garrison Access Hacks . | . . . . . . . . . . . . . . Unauthorized Hacks . | . . . . . . . . . . . . . . Terminals . | . . . . . . . . . . . . . . Fabricators . | . . . . . . . . . . . . . . Repair Stations . | . . . . . . . . . . . . . . Recycling Units . | . . . . . . . . . . . . . . Scanalyzers . | . . . . . . . . . . . . . . Garrison Access . | . . . . . . . . . . . . . . Data Cores Recovered . | . . . . . . . . . . . . . . Used . | . . . . . . . . . . . . . . Hacking Detections 33 | . 4 . . . 3 2 6 2 1 . 7 2 6 Full Trace Events 5 | . . . . . . . . 1 . . . 1 3 Feedback Events . | . . . . . . . . . . . . . . Feedback Blocked . | . . . . . . . . . . . . . . Robot Schematics Acquired . | . . . . . . . . . . . . . . Robots Built . | . . . . . . . . . . . . . . Authchips . | . . . . . . . . . . . . . . Time . | . . . . . . . . . . . . . . Total Robot Build Rating . | . . . . . . . . . . . . . . Part Schematics Acquired . | . . . . . . . . . . . . . . Parts Built . | . . . . . . . . . . . . . . Authchips . | . . . . . . . . . . . . . . Time . | . . . . . . . . . . . . . . Total Part Build Rating . | . . . . . . . . . . . . . . Part Studies Acquired 4 | . . . . . . . 3 . . . 1 . . Parts Repaired . | . . . . . . . . . . . . . . Time . | . . . . . . . . . . . . . . Parts Recycled . | . . . . . . . . . . . . . . Recycled Matter . | . . . . . . . . . . . . . . Retrieved Matter . | . . . . . . . . . . . . . . Retrieved Components 6 | . . . . . . 3 . 3 . . . . . Parts Scanalyzed . | . . . . . . . . . . . . . . Part Schematics Acquired . | . . . . . . . . . . . . . . Parts Damaged . | . . . . . . . . . . . . . . Bothacking | -11 -10 -10 -10 -9 -8 -7 -6 -5 -4 -4 -3 -2 -1 ------------ Run | Yrd Mat Min Exi Min Mat Fac Fac Fac Fac DSF Res Res Acc Used RIF Installer . | . . . . . . . . . . . . . . Robots Hacked . | . . . . . . . . . . . . . . Non-combat . | . . . . . . . . . . . . . . Combat . | . . . . . . . . . . . . . . Robot Hacks Applied . | . . . . . . . . . . . . . . Relay Couplers Released . | . . . . . . . . . . . . . . Fabnet Peak Effective % . | . . . . . . . . . . . . . . Robots Rewired . | . . . . . . . . . . . . . . Allies Hacked . | . . . . . . . . . . . . . . Hacks Repelled . | . . . . . . . . . . . . . . Allies | -11 -10 -10 -10 -9 -8 -7 -6 -5 -4 -4 -3 -2 -1 -------- Run | Yrd Mat Min Exi Min Mat Fac Fac Fac Fac DSF Res Res Acc Total Allies 3 | . . 3 . . . . . . . . . . . Largest Group 3 | . . 3 3 3 3 . . . . . . . . Highest-Rated Group 40 | . . 40 40 40 40 . . . . . . . . Highest-Rated Ally 16 | . . 16 16 16 16 . . . . . . . . Initial Warlord ECA Mod 9 | . . . . . . . . . . . 9 8 7 Total Orders 3 | . . . . . 3 . . . . . . . . STAY 3 | . . . . . 3 . . . . . . . . Ally Attacks 36 | . . . . 36 . . . . . . . . . Total Damage 360 | . . . . 360 . . . . . . . . . Kills 8 | . . . . 8 . . . . . . . . . Allies Corrupted . | . . . . . . . . . . . . . . Allies Melted . | . . . . . . . . . . . . . . Intel | -11 -10 -10 -10 -9 -8 -7 -6 -5 -4 -4 -3 -2 -1 ------- Run | Yrd Mat Min Exi Min Mat Fac Fac Fac Fac DSF Res Res Acc Active Infowar (turns) 6969 | 8 613 325 . 212 973 455 1782 550 17 186 1790 1 57 Terrain 6674 | 8 613 129 . 212 973 455 1782 550 17 186 1692 . 57 Seismic 224 | . . 196 . . 28 . . . . . . . . Cloaking 98 | . . . . . . . . . . . 98 . . ECM 1 | . . . . . . . . . . . . 1 . Robot Analysis Total 2 | . 1 . . . 1 . . . . . . . . Derelict Logs Recovered 4 | . . 2 . 2 . . . . . . . . . Drone Launches . | . . . . . . . . . . . . . . Drone Recoveries . | . . . . . . . . . . . . . . Exploration | -11 -10 -10 -10 -9 -8 -7 -6 -5 -4 -4 -3 -2 -1 ------------- Run | Yrd Mat Min Exi Min Mat Fac Fac Fac Fac DSF Res Res Acc Turns Passed 10201 | 93 613 1061 347 390 997 455 1832 550 17 186 2832 275 553 Spaces Moved 6355 | 39 334 543 213 124 415 271 808 248 9 77 1459 391 1424 Core 140 | 4 . . . . . . . . . . 82 . 54 Treads 4233 | 35 334 512 213 124 415 271 808 248 9 77 1187 . . Legs . | . . . . . . . . . . . . . . Wheels 31 | . . 31 . . . . . . . . . . . Hover 3 | . . . . . . . . . . . . . 3 Flight 1948 | . . . . . . . . . . . 190 391 1367 Fastest Speed 20 | 50 160 110 160 160 160 162 158 158 159 153 35 35 20 Average Speed 121 | 148 160 157 160 160 165 162 179 188 159 156 130 35 34 Slowest Speed 245 | 160 160 240 160 160 245 162 242 228 159 159 225 35 120 Overloaded Moves . | . . . . . . . . . . . . . . Propulsion Burnouts . | . . . . . . . . . . . . . . Robots Hopped 37 | . . . . . . . . . . . 19 3 15 Potential Cave-ins 4 | . . . . . . . . . . . 4 . . Cave-ins Triggered . | . . . . . . . . . . . . . . Exploration Rate (%) 35 | 5 68 90 41 27 39 9 23 7 1 87 48 13 43 Regions Visited 13 Branch Regions 3 Pre-discovered Areas 2 | . . 2 . . . . . . . . . . . Known Exits Taken 6 | . 1 1 1 . . 1 1 . 1 . . . . Unknown Exits Taken 6 | 1 . . . 1 1 . . 1 . . 1 1 . Scrap Searched . | . . . . . . . . . . . . . . Spaces Dug 27 | . . . . . . . 6 3 . . 18 . . Terrain Destroyed 194 | . . 30 . . 32 . 35 3 . 3 91 . . Melee 7 | . . . . . . . 4 3 . . . . . Projectile 87 | . . . . . 6 . 2 . . 3 76 . . AOE 100 | . . 30 . . 26 . 29 . . . 15 . . Terrain Rammed . | . . . . . . . . . . . . . . Walls Destroyed . | . . . . . . . . . . . . . . Machines Disabled . | . . . . . . . . . . . . . . Actions | -11 -10 -10 -10 -9 -8 -7 -6 -5 -4 -4 -3 -2 -1 --------- Run | Yrd Mat Min Exi Min Mat Fac Fac Fac Fac DSF Res Res Acc Total 8246 | 57 383 675 219 309 608 285 1125 307 12 119 2156 525 1466 Wait 1235 | . 4 65 6 176 89 . 224 39 . . 474 134 24 Move 6277 | 38 333 542 212 123 414 270 807 247 9 76 1427 385 1394 Hop 29 | . . . . . . . . . . . 12 2 15 Pick Up 109 | 5 9 9 1 2 11 4 13 2 . 10 37 2 4 Fast Attach 52 | 6 1 1 . 1 2 2 2 1 . 3 18 . 15 Attach 59 | . 2 6 . . 8 2 3 1 2 . 27 1 7 Detach 9 | . . 1 . . 1 . . . 1 . 4 . 2 Swap 63 | . 4 4 . 2 6 2 17 2 . 4 22 . . Drop 78 | . 7 . . 1 8 4 17 2 . 13 22 1 3 Fire 314 | 8 23 47 . 4 69 1 37 2 . 13 108 . 2 Melee 16 | . . . . . . . 5 11 . . . . . Ram 1 | . . . . . . . . . . . 1 . . Kick . | . . . . . . . . . . . . . . Crush 4 | . . . . . . . . . . . 4 . . Escape Stasis . | . . . . . . . . . . . . . . Rewire . | . . . . . . . . . . . . . . Trap . | . . . . . . . . . . . . . . Miscellaneous . | . . . . . . . . . . . . . . Route ------- -11/Scrapyard -10/Materials (discovered 4 exits: *Mat x3 / *Min) -10/Mines (discovered 4 exits: *Mat x2 / *Exi / *Sub) -10/Exiles -9/Mines -8/Materials -7/Factory (discovered 5 exits: *Fac x4 / Sto) -6/Factory (discovered 4 exits: *Fac x4) -5/Factory -4/Factory -4/DSF -3/Research (discovered 2 exits: *Res / *Tes) -2/Research -1/Access History --------- Turn | Location | Event 15 | -11/Scrapyard | Discovered new exit (range 15) 94 | -11/Scrapyard | Entered Materials 173 | -10/Materials | Discovered new exit (range 7) 175 | -10/Materials | Identified exit to Mines 312 | -10/Materials | Build established: Mutant 345 | -10/Materials | Discovered new exit (range 16) 613 | -10/Materials | Discovered new exit (range 16) 707 | -10/Materials | Entered Mines 765 | -10/Mines | Assembled infested the area 792 | -10/Mines | Learned location of Storage (-7) 839 | -10/Mines | Core integrity fell below 50% 881 | -10/Mines | Lost 4 parts (2n1u1w) 1004 | -10/Mines | Learned location of Recycling (-7) 1269 | -10/Mines | Core integrity fell below 20% 1334 | -10/Mines | Discovered new exit (range 8) 1370 | -10/Mines | Discovered new exit (range 14) 1389 | -10/Mines | Identified exit to Subcaves 1444 | -10/Mines | Identified exit to Materials 1535 | -10/Mines | Discovered exit to Materials (range 5) 1602 | -10/Mines | Assisted by bots powering up and referring to "LRC-V3" 1756 | -10/Mines | Deemed a non-threat by the Exiles lab entrance 1756 | -10/Mines | Discovered new exit (range 5) 1760 | -10/Mines | Identified exit to Exiles 1768 | -10/Mines | Entered Exiles 1768 | -10/Exiles | Accompanied by 3 allies 1789 | -10/Exiles | Discovered new exit (range 15) 1808 | -10/Exiles | Met 8R-AWN 1834 | -10/Exiles | Met EX-HEX 1879 | -10/Exiles | Met EX-BIN 1898 | -10/Exiles | Aligned with FarCom system 1900 | -10/Exiles | Given EX-Vault access code 1936 | -10/Exiles | Opened EX-Vault 1949 | -10/Exiles | Found AWS/Gauss 1981 | -10/Exiles | Warned to stay clear of 0b10 Research branches 2107 | -10/Exiles | Identified exit to Mines 2115 | -10/Exiles | Left Exiles lab with AWS/Gauss 2115 | -10/Exiles | Entered Mines 2115 | -9/Mines | Accompanied by 3 allies 2132 | -9/Mines | Met a Derelict bent on vengeance 2386 | -9/Mines | Learned Materials stockpile data 2470 | -9/Mines | Discovered new exit (range 9) 2505 | -9/Mines | Entered Materials 2505 | -8/Materials | Accompanied by 3 allies 2505 | -8/Materials | Evolved 4 slots: Propulsion x1, Utility x2, Weapon x1 2734 | -8/Materials | Central database locked down 2751 | -8/Materials | Build established: Scavenger-Skirmisher 3477 | -8/Materials | Discovered new exit (range 14) 3502 | -8/Materials | Entered Factory 3502 | -7/Factory | Evolved 2 slots: Propulsion x1, Weapon x1 3503 | -7/Factory | Identified exit to Storage 3855 | -7/Factory | Identified exit to Factory 3957 | -7/Factory | Entered another Factory area 3957 | -6/Factory | Evolved 2 slots: Utility x2 4990 | -6/Factory | Identified exit to Factory 5134 | -6/Factory | Build established: Skirmisher 5789 | -6/Factory | Entered another Factory area 5789 | -5/Factory | Evolved 2 slots: Power x1, Weapon x1 5943 | -5/Factory | Build established: Assassin 6041 | -5/Factory | Discovered new exit (range 19) 6339 | -5/Factory | Entered another Factory area 6339 | -4/Factory | Evolved 2 slots: Propulsion x1, Weapon x1 6355 | -4/Factory | Identified exit to DSF 6356 | -4/Factory | Entered DSF 6399 | -4/DSF | Additional patrols routed to DSF 6445 | -4/DSF | Discovered new exit (range 16) 6498 | -4/DSF | Sterilization system engaged 6518 | -4/DSF | Ambient heat levels rising (+10) 6522 | -4/DSF | Destroyed 7 combat bots 6533 | -4/DSF | Ambient heat levels rising (+10) 6542 | -4/DSF | Entered Research 6542 | -3/Research | Evolved 2 slots: Propulsion x1, Utility x1 6598 | -3/Research | Discovered new exit (range 13) 6805 | -3/Research | Build established: Scavenger-Executioner 6857 | -3/Research | Identified exit to Testing 7280 | -3/Research | Lost 3 parts (1p1u1w) 7543 | -3/Research | Build established: Executioner 7724 | -3/Research | AWS/Gauss suddenly broke down 8026 | -3/Research | Build established: Scavenger-Executioner 8232 | -3/Research | AWS/Gauss suddenly broke down 8313 | -3/Research | Destroyed 7 combat bots 8347 | -3/Research | Lost 11 parts (2p2n1u6w) 8697 | -3/Research | Garrison activated, responded to threat 8724 | -3/Research | AWS/Gauss suddenly broke down 8746 | -3/Research | Lost 4 parts (1n1u2w) 8789 | -3/Research | System corruption reached 10% 8877 | -3/Research | Lost 4 parts (1p1u2w) 9220 | -3/Research | Garrison activated, responded to threat 9239 | -3/Research | System corruption reached 30% 9257 | -3/Research | Released all parts (12) 9271 | -3/Research | Lost 8 parts (2p1u5w) 9338 | -3/Research | Core integrity fell below 50% 9361 | -3/Research | Core integrity fell below 20% 9373 | -3/Research | Discovered new exit (range 3) 9374 | -3/Research | Entered another Research area 9374 | -2/Research | Evolved 2 slots: Propulsion x1, Utility x1 9532 | -2/Research | Build established: Mutant 9643 | -2/Research | Discovered new exit (range 10) 9649 | -2/Research | Entered Access 9649 | -1/Access | Evolved 2 slots: Power x1, Propulsion x1 9930 | -1/Access | Lost 5 parts (1p2n2u) 10050 | -1/Access | Lost 3 parts (1p1n1u) 10090 | -1/Access | Core integrity fell below 50% 10119 | -1/Access | Core integrity fell below 20% 10145 | -1/Access | Lost 3 parts (1n2u) 10149 | -1/Access | Search patrols dispatched 10202 | -1/Access | Destroyed by P-80 Master with Gamma Rifle Last Messages --------------- 10141_ W-44 Eye sends out distress signal. 10149_ ALERT: Heightened foreign activity detected, multiple search patrols dispatched. 10149_ Drone sends a signal. 10153_ Adv. Corruption Screen destroyed. 10153_ Knocked back. 10163_ Connecting with Terminal... 10163_ ALERT: Suspicious activity at Terminal A001. Dispatching Investigation squad. 10174_ Dropped Enh. Nova Cannon. 10176_ Slug penetrates R-10 Processor. 10176_ Slug penetrates Wall. 10181_ ALERT: Potential suspicious activity detected, Programmers report to Access Zone 6R. 10181_ Slug penetrates H-88 Terminator. 10186_ Slug penetrates Wall. 10193_ Acquired Impulse Thruster Array. 10196_ Acquired Lgt. Quantum Reactor. [Achievement: Tester] Map ----- +----------------------------------------------------+ | ?????????????????????????????????????????????????? | | ?????????????????????????????????????????????????? | | ?????????????????????????????????????????????????? | | ?????????????????????????????????????????????????? | | ?????????????????????????????????????????????????? | | ?????????????????????????????????????????????????? | | ?????????????????????????????????????????????????? | | ?????????????????????????????????????????????????? | | ?????????????????????????????????????????????????? | | ?????????????????????????????????????????????????? | | ?????????????????????????????????????????????????? | | ?????????????????????????????????????????????????? | | ?????????????????????????????????????????????????? | | ?????????????????????????????????????????????????? | | ?????????????????????????????????????????????????? | | ?????????????????????????????????????????????????? | | ?######??####????????????????????????????????????? | | ?# #????????????????????????????????????? | | ?# #???????????########?????????????????? | | ?# " #???????????# #?????????????????? | | ?# """ #???????????# #?????????????????? | | ?# """ #???????????# #?????????????????? | | ?# " #???????????# #?????????????????? | | ?# * #???????????# ![#?????????????????? | | ??? * ????????????# ![#?????????????????? | | ????? ??????????????#@ #?????????????????? | | ????###+##??????????????# #?????????????????? | | ##### ################ #?????????????????? | | ## #?????????????????? | | Y ## #?????????????????? | | ##### [ ###+######## #######p#?????????????????? | | ????## ##??????????# +?????????????????? | | ?????# #???????????# p #?????????????????? | | ?????# #???????????# #?????????????????? | | ?????+ #???????????# #?????????????? | | ?????# #???????????# #?????????????? | | ?????+ ??????????+ #?????????????? | | ?????# #??????????##+########+###+#?????????????? | | ?????#+##????????????????????????????????????????? | | ?????????????????????????????????????????????????? | | ?????????????????????????????????????????????????? | | ?????????????????????????????????????????????????? | | ?????????????????????????????????????????????????? | | ?????????????????????????????????????????????????? | | ?????????????????????????????????????????????????? | | ?????????????????????????????????????????????????? | | | | | | | | | +----------------------------------------------------+ Best States ------------- Heat Dissipation 122 Energy Generation 41 Energy Capacity 480 Matter Stores 300 Matter Capacity 300 Sight Range 16 Terrain Scan Range 20 Terrain Scan Density 210 Cloak Strength 2 Corruption Block 100 Armor Coverage 675 Resistance: KI 30 Resistance: TH 20 Weapon Cycling 20 Evasion (%) 73 Recoil Reduction 6 Energy Filtering 50 Item Schematics ----------------- None Robot Schematics ------------------ None Fabricated ------------ Nothing Repaired ---------- Nothing Studied --------- Minigun | -6/Factory | Hacked Adv. Treads | -6/Factory | Hacked Arm. Treads | -6/Factory | Hacked Linear Accelerator | -3/Research | Hacked Alien Tech Used ----------------- None Achievements -------------- Drive-By Tester Challenges ------------ None Game ------ Seed ConstructTerrainScythe Manual? 0 Play Time 02:08:48 Cumulative 117.6 hours Start 2026.07.26 @ 22:24:35 End 2026.07.27 @ 00:34:31 Sessions 1 Manual Loads 0 Difficulty Rogue Special Mode None Game No. 130 Rogue 76 Adventurer 54 Explorer 0 Win Type - Total 3 Types 2/0/0/1/0/0/0/0/0/0 Lore% 51 Gallery% 50 Achievement% 44 Wizard Run 0 Options --------- Layout 1 ASCII 0 Keyboard 0 Movement Mouse Keybinds 1 Fullscreen 1 Font 32/Tamsyn Map View 50x35 Zoom Use 0% Tactical HUD 1 Map Filters NONE Filters NONE Steam 1 RUN: e941185c-5d1d-4430-892a-1f191c544d4a